Cogmind - Beta 16.1 @@@ ROGUE MODE // 2026.03.25 @ 20:26:47 Player: Skythe Result: Destroyed by G-34 Mercenary with Small Laser Performance ------------- Evolutions (0) 0 Regions Visited (2) 400 Robots Destroyed (6) 30 Value Destroyed (194) 194 Prototype IDs (0) 0 Alien Tech Used (0) 0 Bonus (0) 0 TOTAL SCORE: 624 Bonus ------- None Cogmind --------- Core Integrity 0/250 Matter 300/300 Energy 100/100 System Corruption 0% Temperature Cool (6) Movement Core (1350) Ox26 Location -10/Mines Parts ------- > --- POWER (1) -------- (None) > --- PROPULSION (2) --- (None) > --- UTILITY (2) ------ Huge Storage Unit > --- WEAPON (2) ------- (None) > --- INVENTORY (25) --- Light Ion Engine Aluminum Leg Visual Processing Unit Peak State ------------ > --- POWER ------------ Light Ion Engine > --- PROPULSION ------- Light Treads Light Treads > --- UTILITY ---------- Propulsion Shielding > --- WEAPON ----------- EM Pulse Gun EM Pulse Gun > --- INVENTORY -------- Light Ion Engine Small Laser [Rating: 6] Favorites ----------- Power Light Ion Engine Engine Light Ion Engine Propulsion Light Treads Treads Light Treads Utility Propulsion Shielding Storage Huge Storage Unit Protection Propulsion Shielding Weapon EM Pulse Gun Energy Gun EM Pulse Gun Build | -11 -10 -10 ------- Run | Yrd Mat Min Slots Evolved . | . . . Power . | . . . Propulsion . | . . . Utility . | . . . Weapon . | . . . Parts Attached 9 | 5 4 . Power 2 | 1 1 . Engine 2 | 1 1 . Core . | . . . Reactor . | . . . Propulsion 2 | 2 . . Treads 2 | 2 . . Leg . | . . . Wheel . | . . . Hover . | . . . Flight . | . . . Utility 3 | . 3 . Device . | . . . Storage 2 | . 2 . Processor . | . . . Hackware . | . . . Protection 1 | . 1 . Artifact . | . . . Weapon 2 | 2 . . Energy Gun 2 | 2 . . Energy Cannon . | . . . Ballistic Gun . | . . . Ballistic Cannon . | . . . Launcher . | . . . Special Weapon . | . . . Impact Weapon . | . . . Slashing Weapon . | . . . Piercing Weapon . | . . . Special Melee Weapon . | . . . Unidentified Prototypes . | . . . Parts Lost 6 | . 1 5 Power 1 | . . 1 Propulsion 2 | . . 2 Utility 1 | . . 1 Weapon 2 | . 1 1 Highest Loss Streak 5 | . 1 5 To Critical Strikes . | . . . Average Backups 2 | 2 2 3 Power 1 | 1 1 1 Propulsion . | . . 1 Utility . | . . 1 Weapon . | . . . Tool/Special . | . . . Unused Backups 5 | . 2 3 Power 2 | . 1 1 Propulsion 1 | . . 1 Utility 1 | . . 1 Weapon 1 | . 1 . Tool/Special . | . . . Average Slot Usage (%) 76 | . 82 54 Engine 12 | . 14 6 Treads 26 | . 28 20 Storage 9 | . 7 14 Protection 10 | . 11 7 Energy Gun 16 | . 19 5 Peak Build Rating 6 | 5 6 6 Average Rating 5 | 3 5 3 On Entrance 3 | . 5 6 Avg Prop Armor Cover (%) . | . . . Naked Turns . | . . . Heaviest Build 86 | 7 86 86 Greatest Support 40 | 40 40 40 Greatest Overweight (x) 3 | . 2 3 Average Overweight (x) . | . . 1 Largest Inventory Capacity 25 | 5 25 25 Average Capacity 14 | 5 12 25 Most Carried 5 | 5 5 3 Average Carried 2 | 2 2 3 Final Capacity 25 | 5 25 25 Final Carried 3 | 2 3 3 Class Distribution -------------------- 100% | Mutant Dominant Class ---------------- Mutant | -10/Materials Mutant | -10/Mines Resources | -11 -10 -10 ----------- Run | Yrd Mat Min Matter Collected 285 | 167 118 . Remotely . | . . . Salvage Created 210 | . 180 30 Parts 16 | . 16 . Haulers Intercepted . | . . . Recyclers Shooed . | . . . Parts Field Recycled . | . . . Retrieved Matter . | . . . Parts Self-Destructed . | . . . Prevented . | . . . Parts Restored . | . . . Kills | -11 -10 -10 ------- Run | Yrd Mat Min Combat Hostiles Destroyed 4 | . 3 1 Melee 1 | . . 1 Guns 3 | . 3 . Classes Destroyed 3 | . 3 . Operator 1 | . 1 . Watcher 1 | . 1 . Grunt 4 | . 3 1 Best Kill Streak 3 | . 3 1 Combat Bots Only 2 | . 2 1 Max Kills in Single Turn 1 | . 1 1 Gunslinging . | . . . Exploded . | . . . Melee 1 | . . 1 Uniques/NPCs Destroyed . | . . . Combat | -11 -10 -10 -------- Run | Yrd Mat Min Hostile Shots Fired 75 | . 16 59 Missed 10 | . 2 8 Hits 65 | . 14 51 Projectile 65 | . 14 51 Critical Strikes 2 | . 1 1 Damage Taken 834 | . 182 652 Core 251 | . 13 238 Absorbed by Shields . | . . . Redirected to Shielding 53 | . 17 36 Core Remaining (%) 100 | 100 . . Volleys Fired 15 | . 12 3 Largest 2 | . 2 1 Hottest 80 | . 80 40 Shots Fired 21 | . 18 3 Gun 21 | . 18 3 Cannon . | . . . Launcher . | . . . Special . | . . . Kinetic . | . . . Thermal . | . . . Explosive . | . . . Electromagnetic 21 | . 18 3 Robot Hit Streak 5 | . 5 5 Robot Miss Streak 3 | . 3 . Penetration Max . | . . . Secondary Targets . | . . . Shots Hit Robots 15 | . 12 3 Core Hits 11 | . 8 3 Critical Kills . | . . . Critical Parts Destroyed . | . . . Critical Strikes . | . . . Melee Attacks . | . . . Impact . | . . . Slashing . | . . . Piercing . | . . . Sneak Attacks . | . . . Combat Hostiles . | . . . Follow-up Attacks . | . . . Damage Inflicted 341 | . 167 174 Guns 210 | . 167 43 Cannons . | . . . Explosions 108 | . . 108 Melee . | . . . Ramming 23 | . . 23 Kinetic . | . . . Thermal 108 | . . 108 Explosive . | . . . Electromagnetic 210 | . 167 43 Impact . | . . . Slashing . | . . . Piercing . | . . . Highest Corruption . | . . . Average Corruption . | . . . Corruption Purged . | . . . Corruption Blocked . | . . . Overload Shots . | . . . Overflow Damage . | . . . Projectiles . | . . . Explosions . | . . . Melee . | . . . Knockbacks . | . . . Impact . | . . . Kinetic . | . . . Secondary . | . . . Self-Inflicted Damage . | . . . Shots . | . . . Rammed 9 | . . 9 Targets Rammed 10 | . . 10 Kicked . | . . . Crushed 1 | . . 1 Highest Temperature 207 | . 207 51 Average Temperature 94 | . 111 21 Received Heat Transfer 489 | . 123 366 Siege Activations . | . . . Martial Activations . | . . . Shielding Activations . | . . . Robots Disrupted . | . . . Combat Hostiles . | . . . Robots Corrupted . | . . . Combat Hostiles . | . . . Parts Fried . | . . . Impact Corruptions . | . . . Robots Melted . | . . . Combat Hostiles . | . . . Parts Melted . | . . . Heat Transferred 100 | . . 100 Parts Sabotaged . | . . . Parts Stolen . | . . . Parts Stripped . | . . . Power Chain Reactions 1 | . . 1 Alert | -11 -10 -10 ------- Run | Yrd Mat Min Maximum Alert Level . | . . . Low Security (%) 100 | 100 100 100 Level 1 . | . . . Level 2 . | . . . Level 3 . | . . . Level 4 . | . . . Level 5 . | . . . High Security . | . . . Max Security . | . . . Peak Influence 57 | . 57 30 Initial . | . . . Average 7 | . 9 3 Influence Increases 128 | . 92 36 Destroy 0b10 Robot/C 80 | . 60 20 Destroy 0b10 Robot/NC 10 | . 10 . Destroy Leader 32 | . 22 10 Destroy Structure 6 | . . 6 Influence Decreases 128 | . 92 36 Time Decay 102 | . 92 10 Lost Part 26 | . . 26 Squads Dispatched 1 | . 1 . Investigation 1 | . 1 . Extermination . | . . . Reinforcement . | . . . Assault . | . . . Garrison . | . . . Intercept . | . . . Searches Triggered . | . . . Construction Impeded . | . . . Haulers Reinforced . | . . . Active Scanning Responses . | . . . Cargo Convoy Interrupts . | . . . Stealth | -11 -10 -10 --------- Run | Yrd Mat Min Distress Signals . | . . . Communications Jammed . | . . . Distress Signals . | . . . Times Spotted 6 | . 4 2 Peak Tracking Total 3 | . 3 2 Tactical Retreats . | . . . Traps | -11 -10 -10 ------- Run | Yrd Mat Min Traps Triggered . | . . . Indirectly . | . . . Trap Hack Attempts . | . . . Triggered . | . . . Disarmed . | . . . Reprogrammed . | . . . Reused . | . . . Traps Extracted . | . . . Installed . | . . . Triggered . | . . . Machines | -11 -10 -10 ---------- Run | Yrd Mat Min Machines Disabled . | . . . Max in Single Turn . | . . . Machines Repaired . | . . . Machines Dismantled . | . . . Machines Sabotaged . | . . . Overloaded Fab Kills . | . . . Hacking | -11 -10 -10 --------- Run | Yrd Mat Min Machines Accessed . | . . . Terminals . | . . . Fabricators . | . . . Repair Stations . | . . . Recycling Units . | . . . Scanalyzers . | . . . Garrison Access . | . . . Total Hacks . | . . . Successful . | . . . Failed . | . . . Catastrophic . | . . . Database Lockouts . | . . . Manual . | . . . Terminals . | . . . Fabricators . | . . . Repair Stations . | . . . Recycling Units . | . . . Scanalyzers . | . . . Garrison Access . | . . . Terminal Hacks . | . . . Fabricator Hacks . | . . . Repair Station Hacks . | . . . Recycling Unit Hacks . | . . . Scanalyzer . | . . . Garrison Access Hacks . | . . . Unauthorized Hacks . | . . . Terminals . | . . . Fabricators . | . . . Repair Stations . | . . . Recycling Units . | . . . Scanalyzers . | . . . Garrison Access . | . . . Data Cores Recovered 1 | . 1 . Used . | . . . Hacking Detections . | . . . Full Trace Events . | . . . Feedback Events . | . . . Feedback Blocked . | . . . Robot Schematics Acquired . | . . . Robots Built . | . . . Authchips . | . . . Time . | . . . Total Robot Build Rating . | . . . Part Schematics Acquired . | . . . Parts Built . | . . . Authchips . | . . . Time . | . . . Total Part Build Rating . | . . . Part Studies Acquired . | . . . Parts Repaired . | . . . Time . | . . . Parts Recycled . | . . . Recycled Matter . | . . . Retrieved Matter . | . . . Retrieved Components . | . . . Parts Scanalyzed . | . . . Part Schematics Acquired . | . . . Parts Damaged . | . . . Bothacking | -11 -10 -10 ------------ Run | Yrd Mat Min Used RIF Installer . | . . . Robots Hacked . | . . . Non-combat . | . . . Combat . | . . . Robot Hacks Applied . | . . . Relay Couplers Released . | . . . Fabnet Peak Effective % . | . . . Robots Rewired . | . . . Allies Hacked . | . . . Hacks Repelled . | . . . Allies | -11 -10 -10 -------- Run | Yrd Mat Min Total Allies . | . . . Largest Group . | . . . Highest-Rated Group . | . . . Highest-Rated Ally . | . . . Total Orders . | . . . Ally Attacks . | . . . Total Damage . | . . . Kills . | . . . Allies Corrupted . | . . . Allies Melted . | . . . Intel | -11 -10 -10 ------- Run | Yrd Mat Min Active Infowar (turns) . | . . . Robot Analysis Total . | . . . Derelict Logs Recovered . | . . . Drone Launches . | . . . Drone Recoveries . | . . . Exploration | -11 -10 -10 ------------- Run | Yrd Mat Min Turns Passed 687 | 74 492 121 Spaces Moved 302 | 51 232 19 Core 17 | 17 . . Treads 285 | 34 232 19 Legs . | . . . Wheels . | . . . Hover . | . . . Flight . | . . . Fastest Speed 50 | 50 160 240 Average Speed 189 | 123 194 307 Slowest Speed 400 | 160 320 400 Overloaded Moves . | . . . Propulsion Burnouts . | . . . Robots Hopped . | . . . Potential Cave-ins . | . . . Cave-ins Triggered . | . . . Exploration Rate (%) 17 | 4 43 6 Regions Visited 2 Branch Regions 1 Pre-discovered Areas . | . . . Known Exits Taken . | . . . Unknown Exits Taken 2 | 1 1 . Scrap Searched . | . . . Spaces Dug . | . . . Terrain Destroyed 6 | . . 6 Melee . | . . . Projectile . | . . . AOE 6 | . . 6 Terrain Rammed . | . . . Walls Destroyed . | . . . Machines Disabled . | . . . Actions | -11 -10 -10 --------- Run | Yrd Mat Min Total 352 | 62 258 32 Wait . | . . . Move 300 | 50 231 19 Hop . | . . . Pick Up 14 | 7 7 . Fast Attach . | . . . Attach 7 | 5 2 . Detach . | . . . Swap 2 | . 2 . Drop 4 | . 4 . Fire 15 | . 12 3 Melee . | . . . Ram 3 | . . 3 Kick . | . . . Crush 7 | . . 7 Escape Stasis . | . . . Rewire . | . . . Trap . | . . . Miscellaneous . | . . . Route ------- -11/Scrapyard -10/Materials (discovered 2 exits: [*Mat] / [*Min]) -10/Mines History --------- Turn | Location | Event 14 | -11/Scrapyard | Discovered new exit (range 15) 75 | -11/Scrapyard | Entered Materials 309 | -10/Materials | Build established: Mutant 347 | -10/Materials | Discovered new exit (range 16) 516 | -10/Materials | Discovered new exit (range 9) 567 | -10/Materials | Entered Mines 653 | -10/Mines | Core integrity fell below 50% 675 | -10/Mines | Core integrity fell below 20% 681 | -10/Mines | Lost 5 parts (1p2n1u1w) 688 | -10/Mines | Destroyed by G-34 Mercenary with Small Laser Last Messages --------------- Critical hit (Burn: +37). Slammed into G-47 Trooper. G-47 Trooper misfires. Core Extractor disabled. Lgt. Ion Engine destroyed. Slammed into G-34 Mercenary. Propulsion Shielding destroyed. Slammed into G-47 Trooper. Slammed into G-34 Mercenary. G-47 Trooper misfires. Crushed G-47 Trooper. G-47 Trooper destroyed. Slammed into G-34 Mercenary. Lgt. Treads destroyed. Slammed into G-34 Mercenary. Lgt. Treads destroyed. Slammed into G-34 Mercenary. Destabilizing: Core damaged (-12). U-05 Engineer lays Concrete. Slammed into G-34 Mercenary. Map ----- +----------------------------------------------------+ | | | | | | | | | | | | | | | | | | | | | | | | | | | | | | | | | ???????????????????????????????????????? | | ???????????????????????????????????????? | | ???????????????????????????????????????? | | ?????????????##########????????????????? | | ?????????????# #????????????????? | | ?????????????# """ #????????????????? | | ?????????????# """ #????????????????? | | ?????????????# " " #????????????????? | | ?????????????# #????????????????? | | ?????????????# @%%% #????????????????? | | ?????????????#;g%%%####????????????????? | | ?????????????##; ;#???????????????????? | | ??????????????#; ##???????????????????? | | ??????????????## #????????????????????? | | ???????????????# #????????????????????? | | ???????????##### #????????????????????? | | ??????????## ## #????????????????????? | | ??????????#! # #????????????????????? | | ??????????# * #????????????????????? | | ?????????# ## #????????????????????? | | ?????????# ### #????????????????????? | | ?????????# #??# ???????????????????? | | ?????????# *???# ??????????????????? | | ????????# ????##### ?????????????????? | | ????????# !????????? "????????????????? | | ????????##??????????? ""???????????????? | | ?????????????????????? ??????????????? | | ?????????????????????? ??????????????? | | ???????????????????????##??????????????? | | ???????????????????????????????????????? | | ???????????????????????????????????????? | | ???????????????????????????????????????? | | ???????????????????????????????????????? | | ???????????????????????????????????????? | +----------------------------------------------------+ Best States ------------- Heat Dissipation 25 Energy Generation 10 Energy Capacity 125 Matter Stores 300 Matter Capacity 300 Sight Range 16 Terrain Scan Density 10 Propulsion Shielding 33 Evasion (%) 50 Recoil Reduction 2 Item Schematics ----------------- None Robot Schematics ------------------ None Fabricated ------------ Nothing Repaired ---------- Nothing Studied --------- None Alien Tech Used ----------------- None Achievements -------------- None Challenges ------------ None Game ------ Seed MiningArchitectTrap Manual? 0 Play Time 00:04:18 Cumulative 5.5 hours Start 2026.03.25 @ 20:23:02 End 2026.03.25 @ 20:26:47 Sessions 1 Manual Loads 0 Difficulty Rogue Special Mode None Game No. 20 Rogue 20 Adventurer 0 Explorer 0 Win Type - Total 0 Types 0/0/0/0/0/0/0/0/0/0 Lore% 2 Gallery% 10 Achievement% 10 Wizard Run 0 Options --------- Layout 1 ASCII 0 Keyboard 0 Movement Arrows Keybinds 0 Fullscreen 1 Font 24/Proggy Map View 50x35 Zoom Use 0% Tactical HUD 0 Map Filters NONE Filters NONE Steam 1 RUN: 3c95b45f-e575-459d-b6fe-3652c99da13f